fUSD/lending_fUSD_20250128
["ID","MTS","AMOUNT","RATE_DAILY","PERIOD"]
[350672702,1738054234423,-500.0,0.0001863,2]
[350672703,1738054234432,-316.74418541,0.0001863,2]
[350672704,1738054234442,-500.0,0.0001863,2]
[350672705,1738054234451,-274.62719392,0.0001863,2]
[350672706,1738054234460,-316.66449701,0.0001863,2]
[350672707,1738054234471,-500.0,0.0001863,2]
[350672708,1738054234480,-500.0,0.0001863,2]
[350672709,1738054234490,-500.0,0.0001863,2]
[350672710,1738054234499,-315.84056413,0.0001863,2]
[350672711,1738054234508,-641.52757009,0.0001863,2]
[350672712,1738054234517,-500.0,0.0001863,2]
[350672713,1738054234526,-207.98024765,0.0001863,2]
[350672714,1738054234536,-500.0,0.0001863,2]
[350672715,1738054234546,-500.0,0.0001863,2]
[350672716,1738054234555,-500.0,0.0001863,2]
[350672717,1738054234564,-500.0,0.0001863,2]
[350672718,1738054234574,-500.0,0.0001863,2]
[350672719,1738054234583,-500.0,0.0001863,2]
[350672720,1738054234592,-500.0,0.0001863,2]
[350672721,1738054234602,-500.0,0.0001863,2]
[350672722,1738054234611,-501.05573421,0.0001863,2]
[350672723,1738054234620,-500.0,0.0001863,2]
[350672724,1738054234629,-500.0,0.0001863,2]
[350672725,1738054234638,-500.843837,0.0001863,2]
[350672726,1738054234647,-500.0,0.0001863,2]
[350672727,1738054234656,-500.0,0.0001863,2]
[350672728,1738054234665,-500.0,0.0001863,2]
[350672729,1738054234674,-500.0,0.0001863,2]
[350672730,1738054234683,-500.0,0.0001863,2]
[350672731,1738054234692,-500.0,0.0001863,2]
[350672732,1738054234705,-500.0,0.0001863,2]
[350672733,1738054234714,-514.17148501,0.0001863,2]
[350672734,1738054234725,-500.0,0.0001863,2]
[350672735,1738054234734,-500.0,0.0001863,2]
[350672736,1738054234745,-500.0,0.0001863,2]
[350672737,1738054234754,-500.0,0.0001863,2]
[350672738,1738054234763,-500.0,0.0001863,2]
[350672739,1738054234772,-272.88419354,0.0001863,2]
[350672740,1738054234784,-500.0,0.0001863,2]
[350672741,1738054234793,-536.92968351,0.0001863,2]
[350672742,1738054234802,-501.49889643,0.0001863,2]
[350672743,1738054234811,-500.0,0.0001863,2]
[350672744,1738054234820,-585.9,0.0001863,2]
[350672745,1738054234830,-500.8788155,0.0001863,2]
[350672746,1738054234839,-500.0,0.0001863,2]
[350672747,1738054234849,-500.0,0.0001863,2]
[350672748,1738054234858,-500.0,0.0001863,2]
[350672749,1738054234868,-500.0,0.0001863,2]
[350672750,1738054234877,-500.0,0.0001863,2]
[350672751,1738054234887,-500.0,0.0001863,2]
[350672752,1738054234896,-500.0,0.0001863,2]
[350672753,1738054234905,-500.0,0.0001863,2]
[350672754,1738054234915,-500.0,0.0001863,2]
[350672755,1738054234925,-500.0,0.0001863,2]
[350672756,1738054234935,-500.0,0.0001863,2]
[350672757,1738054234944,-500.0,0.0001863,2]
[350672758,1738054234953,-500.0,0.0001863,2]
[350672759,1738054234963,-500.0,0.0001863,2]
[350672760,1738054234974,-500.0,0.0001863,2]
[350672761,1738054234984,-500.0,0.0001863,2]
[350672762,1738054234993,-500.0,0.0001863,2]
[350672763,1738054235002,-500.0,0.0001863,2]
[350672764,1738054235011,-500.0,0.0001863,2]
[350672765,1738054235020,-500.0,0.0001863,2]
[350672766,1738054235030,-500.0,0.0001863,2]
[350672767,1738054235039,-500.0,0.0001863,2]
[350672768,1738054235049,-500.0,0.0001863,2]
[350672769,1738054235058,-565.08847283,0.0001863,2]
[350672770,1738054235068,-580.98,0.0001863,2]
[350672771,1738054235078,-580.98,0.0001863,2]
[350672772,1738054235087,-500.0,0.0001863,2]
[350672773,1738054235096,-500.0,0.0001863,2]
[350672774,1738054235105,-795.05,0.0001863,2]
[350672775,1738054235115,-500.0,0.0001863,2]
[350672776,1738054235124,-500.0,0.0001863,2]
[350672777,1738054235133,-500.0,0.0001863,2]
[350672778,1738054235142,-510.44000699,0.0001863,2]
[350672779,1738054235151,-500.0,0.0001863,2]
[350672780,1738054235160,-167.22,0.00018786,30]
[350672781,1738054235169,-993.38,0.000188,2]
[350672782,1738054235178,-151.02069759,0.00018804,2]
[350672783,1738054235187,-604.1,0.00018999,2]
[350672784,1738054235196,-500.0,0.00018999,2]
[350672785,1738054235204,-500.0,0.00018999,2]
[350672786,1738054235214,-500.0,0.00018999,2]
[350672787,1738054235225,-500.0,0.00018999,2]
[350672788,1738054235234,-500.0,0.00018999,2]
[350672789,1738054235244,-500.0,0.00018999,2]
[350672790,1738054235253,-500.0,0.00018999,2]
[350672791,1738054235263,-500.0,0.00018999,2]
[350672792,1738054235273,-500.0,0.00018999,2]
[350672793,1738054235282,-877.62,0.00018999,2]
[350672794,1738054235292,-500.0,0.00018999,2]
[350672795,1738054235302,-500.0,0.00018999,2]
[350672796,1738054235312,-500.0,0.00018999,2]
[350672797,1738054235322,-30867.25,0.00019,2]
[350672798,1738054235331,-7094.04167592,0.00019,2]
[350672799,1738054235341,-298.24,0.00019,2]
[350672800,1738054235351,-3142.44,0.00019077,2]
[350672801,1738054235362,-151.02069759,0.00019078,2]
[350672802,1738054235371,-1222.21,0.00019078,2]
[350672803,1738054235381,-150.0,0.00019178,2]
[350672804,1738054235390,-1869.17,0.00019188,2]
[350672805,1738054235400,-500.0,0.00019198,2]
[350672806,1738054235409,-365.97976724,0.00019198,2]
[350672807,1738054235418,-500.0,0.00019198,2]
[350672808,1738054235427,-723.83,0.00019198,2]
[350672809,1738054235437,-500.0,0.00019198,2]
[350672810,1738054235446,-500.0,0.00019198,2]
[350672811,1738054235456,-500.0,0.00019198,2]
[350672812,1738054235465,-872.7,0.00019198,2]
[350672813,1738054235475,-500.0,0.00019198,2]
[350672814,1738054235486,-500.0,0.00019198,2]
[350672815,1738054235495,-590.53,0.00019198,2]
[350672816,1738054235505,-910.69,0.00019198,2]
[350672817,1738054235514,-500.0,0.00019198,2]
[350672818,1738054235524,-502.40906283,0.00019198,2]
[350672819,1738054235533,-504.45,0.00019198,2]
[350672820,1738054235542,-500.0,0.00019198,2]
[350672821,1738054235552,-500.0,0.00019198,2]
[350672822,1738054235561,-500.0,0.00019198,2]
[350672823,1738054235571,-696.35,0.00019198,2]
[350672824,1738054235580,-500.0,0.00019198,2]
[350672825,1738054235590,-500.0,0.00019198,2]
[350672826,1738054235599,-500.0,0.00019198,2]
[350672827,1738054235608,-500.0,0.00019198,2]
[350672828,1738054235617,-500.0,0.00019198,2]
[350672829,1738054235626,-500.0,0.00019198,2]
[350672830,1738054235636,-500.0,0.00019198,2]
[350672831,1738054235645,-500.0,0.00019198,2]
[350672832,1738054235655,-371.43173551,0.00019198,2]
[350672833,1738054235665,-500.0,0.00019198,2]
[350672834,1738054235674,-500.0,0.00019198,2]
[350672835,1738054235683,-781.03,0.00019198,2]
[350672836,1738054235694,-500.0,0.00019198,2]
[350672837,1738054235706,-500.0,0.00019198,2]
[350672838,1738054235717,-500.0,0.00019198,2]
[350672839,1738054235732,-1090.09,0.00019198,2]
[350672840,1738054235743,-500.52683085,0.00019198,2]
[350672841,1738054235752,-504.93574993,0.00019198,2]
[350672842,1738054235761,-500.0,0.00019198,2]
[350672843,1738054235771,-593.48,0.00019198,2]
[350672844,1738054235782,-500.0,0.00019198,2]
[350672845,1738054235791,-500.0,0.00019198,2]
[350672846,1738054235801,-1229.71,0.00019198,2]
[350672847,1738054235810,-500.0,0.00019198,2]
[350672848,1738054235819,-500.0,0.00019198,2]
[350672849,1738054235828,-500.0,0.00019198,2]
[350672850,1738054235837,-500.0,0.00019198,2]
[350672851,1738054235846,-500.0,0.00019198,2]
[350672852,1738054235855,-500.0,0.00019198,2]
[350672853,1738054235864,-500.0,0.00019198,2]
[350672854,1738054235873,-520.16,0.00019198,2]
[350672855,1738054235882,-500.0,0.00019198,2]
[350672856,1738054235891,-500.0,0.00019198,2]
[350672857,1738054235901,-500.0,0.00019198,2]
[350672858,1738054235910,-500.0,0.00019198,2]
[350672859,1738054235919,-502.43979428,0.00019198,2]
[350672860,1738054235928,-500.0,0.00019198,2]
[350672861,1738054235938,-500.0,0.00019198,2]
[350672862,1738054235947,-500.0,0.00019198,2]
[350672863,1738054235956,-514.1,0.00019198,2]
[350672864,1738054235967,-500.0,0.00019198,2]
[350672865,1738054235976,-502.13688183,0.00019198,2]
[350672866,1738054235986,-530.92,0.00019198,2]
[350672867,1738054235995,-506.24971668,0.00019198,2]
[350672868,1738054236006,-500.0,0.00019198,2]
[350672869,1738054236015,-500.0,0.00019198,2]
[350672870,1738054236024,-505.45223133,0.00019198,2]
[350672871,1738054236033,-500.0,0.00019198,2]
[350672872,1738054236042,-500.0,0.00019198,2]
[350672873,1738054236051,-500.0,0.00019198,2]
[350672874,1738054236060,-509.64604613,0.00019198,2]
[350672875,1738054236069,-500.0,0.00019198,2]
[350672876,1738054236078,-1059.7,0.00019198,2]
[350672877,1738054236087,-505.56141757,0.00019198,2]
[350672878,1738054236096,-506.92610184,0.00019198,2]
[350672879,1738054236105,-500.0,0.00019198,2]
[350672880,1738054236118,-500.0,0.00019198,2]
[350672881,1738054236127,-514.47976967,0.00019198,2]
[350672882,1738054236136,-500.0,0.00019198,2]
[350672883,1738054236146,-500.0,0.00019198,2]
[350672884,1738054236155,-508.0257218,0.00019198,2]
[350672885,1738054236165,-506.90934183,0.00019198,2]
[350672886,1738054236174,-500.0,0.00019198,2]
[350672887,1738054236184,-505.91259316,0.00019198,2]
[350672888,1738054236194,-500.0,0.00019198,2]
[350672889,1738054236203,-500.0,0.00019198,2]
[350672890,1738054236212,-500.0,0.00019198,2]
[350672891,1738054236223,-502.76122109,0.00019198,2]
[350672892,1738054236232,-502.53036397,0.00019198,2]
[350672893,1738054236242,-500.0,0.00019198,2]
[350672894,1738054236251,-500.0,0.00019198,2]
[350672895,1738054236260,-500.0,0.00019198,2]
[350672896,1738054236269,-500.0,0.00019198,2]
[350672897,1738054236278,-500.0,0.00019198,2]
[350672898,1738054236287,-500.0,0.00019198,2]
[350672899,1738054236296,-500.0,0.00019198,2]
[350672900,1738054236306,-500.0,0.00019198,2]
[350672901,1738054236315,-500.0,0.00019198,2]
[350672902,1738054236324,-500.0,0.00019198,2]
[350672903,1738054236334,-500.0,0.00019198,2]
[350672904,1738054236343,-500.0,0.00019198,2]
[350672905,1738054236353,-500.0,0.00019198,2]
[350672906,1738054236363,-500.0,0.00019198,2]
[350672907,1738054236373,-500.0,0.00019198,2]
[350672908,1738054236383,-500.0,0.00019198,2]
[350672909,1738054236394,-500.0,0.00019198,2]
[350672910,1738054236403,-500.0,0.00019198,2]
[350672911,1738054236413,-478.42991424,0.00019198,2]
[350672912,1738054236422,-500.0,0.00019198,2]
[350672913,1738054236431,-500.0,0.00019198,2]
[350672914,1738054236440,-500.0,0.00019199,2]
[350672915,1738054236450,-500.0,0.00019199,2]
[350672916,1738054236459,-500.0,0.00019199,2]
[350672917,1738054236470,-349.76978228,0.00019199,2]
[350672918,1738054236479,-500.0,0.00019199,2]
[350672919,1738054236488,-500.0,0.00019199,2]
[350672920,1738054236498,-500.0,0.00019199,2]
[350672921,1738054236508,-503.75533264,0.00019199,2]
[350672922,1738054236518,-500.0,0.00019199,2]
[350672923,1738054236527,-500.0,0.00019199,2]
[350672924,1738054236537,-500.0,0.00019199,2]
[350672925,1738054236546,-500.0,0.00019199,2]
[350672926,1738054236555,-500.0,0.00019199,2]
[350672927,1738054236565,-500.0,0.00019199,2]
[350672928,1738054236574,-503.87469767,0.00019199,2]
[350672929,1738054236584,-500.0,0.00019199,2]
[350672930,1738054236593,-538.43,0.00019199,2]
[350672931,1738054236602,-500.0,0.00019199,2]
[350672932,1738054236611,-500.0,0.00019199,2]
[350672933,1738054236621,-500.0,0.00019199,2]
[350672934,1738054236631,-525.84,0.00019199,2]
[350672935,1738054236640,-500.0,0.00019199,2]
[350672936,1738054236650,-500.0,0.00019199,2]
[350672937,1738054236659,-500.0,0.00019199,2]
[350672938,1738054236668,-500.0,0.00019199,2]
[350672939,1738054236811,-844.05,0.00019199,2]
[350672940,1738054236821,-500.0,0.00019199,2]
[350672941,1738054236830,-649.69,0.00019199,2]
[350672942,1738054236839,-591.11,0.00019199,2]
[350672943,1738054236848,-500.0,0.00019199,2]
[350672944,1738054236857,-500.0,0.00019199,2]
[350672945,1738054236866,-500.0,0.00019199,2]
[350672946,1738054236875,-500.0,0.00019199,2]
[350672947,1738054236884,-500.0,0.00019199,2]
[350672948,1738054236895,-500.0,0.00019199,2]
[350672949,1738054236903,-500.0,0.00019199,2]
[350672950,1738054236913,-500.0,0.00019199,2]
[350672951,1738054236921,-508.0935009,0.00019199,2]
[350672952,1738054236930,-500.0,0.00019199,2]
[350672953,1738054236939,-500.0,0.00019199,2]
[350672954,1738054236948,-500.0,0.00019199,2]
[350672955,1738054236957,-500.0,0.00019199,2]
[350672956,1738054236967,-500.0,0.00019199,2]
[350672957,1738054236976,-500.0,0.00019199,2]
[350672958,1738054236985,-500.0,0.00019199,2]
[350672959,1738054236994,-500.0,0.00019199,2]
[350672960,1738054237003,-500.0,0.00019199,2]
[350672961,1738054237012,-349.94409614,0.00019199,2]
[350672962,1738054237021,-500.0,0.00019199,2]
[350672963,1738054237033,-500.0,0.00019199,2]
[350672964,1738054237045,-500.0,0.00019199,2]
[350672965,1738054237054,-500.0,0.00019199,2]
[350672966,1738054237063,-500.0,0.00019199,2]
[350672967,1738054237072,-500.0,0.00019199,2]
[350672968,1738054237081,-500.0,0.00019199,2]
[350672969,1738054237089,-585.9,0.00019199,2]
[350672970,1738054237098,-500.0,0.00019199,2]
[350672971,1738054237107,-500.0,0.00019199,2]
[350672972,1738054237116,-500.0,0.00019199,2]
[350672973,1738054237125,-500.0,0.00019199,2]
[350672974,1738054237135,-507.55022076,0.00019199,2]
[350672975,1738054237143,-500.0,0.00019199,2]
[350672976,1738054237153,-500.0,0.00019199,2]
[350672977,1738054237162,-500.0,0.00019199,2]
[350672978,1738054237171,-245.49216688,0.00019199,2]
[350672979,1738054237179,-795.05,0.00019199,2]
[350672980,1738054237188,-500.0,0.00019199,2]
[350672981,1738054237197,-500.0,0.00019199,2]
[350672982,1738054237206,-500.0,0.00019199,2]
[350672983,1738054237215,-500.0,0.00019199,2]
[350672984,1738054237224,-159.99336566,0.00019252,2]
[350672985,1738054237233,-1869.17,0.00019289,2]
[350672986,1738054237243,-500.0,0.00019298,2]
[350672987,1738054237251,-500.0,0.00019298,2]
[350672988,1738054237261,-500.0,0.00019298,2]
[350672989,1738054237270,-500.0,0.00019298,2]
[350672990,1738054237279,-500.0,0.00019298,2]
[350672991,1738054237288,-500.0,0.00019298,2]
[350672992,1738054237297,-500.0,0.00019298,2]
[350672993,1738054237306,-500.0,0.00019298,2]
[350672994,1738054237315,-877.62,0.00019298,2]
[350672995,1738054237325,-500.0,0.00019298,2]
[350672996,1738054237335,-500.0,0.00019298,2]
[350672997,1738054237344,-500.0,0.00019298,2]
[350672998,1738054237354,-7089.8688,0.00019298,2]
[350672999,1738054237363,-267766.09788142,0.00019299,2]
[350673000,1738054237372,-151.02069759,0.00019351,2]
[350673001,1738054237383,-150.6,0.00019365,2]
[350673002,1738054237392,-500.0,0.0001939,2]
[350673003,1738054237401,-680.05,0.0001939,2]
[350673004,1738054237411,-1764.13,0.0001939,2]
[350673005,1738054237419,-325.30304119,0.0001939,2]
[350673006,1738054237429,-500.81607658,0.0001939,2]
[350673007,1738054237438,-500.0,0.0001939,2]
[350673008,1738054237447,-500.0,0.0001939,2]
[350673009,1738054237456,-500.0,0.0001939,2]
[350673010,1738054237466,-716.19,0.0001939,2]
[350673011,1738054237475,-550.76597089,0.0001939,2]
[350673012,1738054237485,-736.25,0.0001939,2]
[350673013,1738054237494,-509.3,0.0001939,2]
[350673014,1738054237503,-172.54417278,0.0001939,2]
[350673015,1738054237513,-5000.0,0.00019399,2]
[350673016,1738054237523,-173.37831777,0.00019399,2]
[350673017,1738054237532,-439353.47648433,0.00019399,2]
[350673018,1738054237542,-5850.6733,0.000194,2]
[350673019,1738054237551,-378.00560944,0.000194,2]
[350673020,1738054237560,-501.68027478,0.000194,2]
[350673021,1738054237570,-504.44470264,0.000194,2]
[350673022,1738054237579,-500.0,0.000194,2]
[350673023,1738054237589,-500.0,0.000194,2]
[350673024,1738054237598,-500.0,0.000194,2]
[350673025,1738054237607,-502.56457031,0.000194,2]
[350673026,1738054237617,-500.0,0.000194,2]
[350673027,1738054237626,-232.1271861,0.000194,2]
[350673028,1738054237635,-500.0,0.000194,2]
[350673029,1738054237644,-500.0,0.000194,2]
[350673030,1738054237653,-500.0,0.000194,2]
[350673031,1738054237662,-503.73451411,0.000194,2]
[350673032,1738054237672,-500.0,0.000194,2]
[350673033,1738054237681,-500.0,0.000194,2]
[350673034,1738054237690,-205.82774723,0.000194,2]
[350673035,1738054237700,-500.0,0.000194,2]
[350673036,1738054237711,-500.0,0.000194,2]
[350673037,1738054237721,-275.94473716,0.000194,2]
[350673038,1738054237730,-500.0,0.000194,2]
[350673039,1738054237740,-1062.06,0.000194,2]
[350673040,1738054237750,-500.0,0.000194,2]
[350673041,1738054237759,-500.0,0.000194,2]
[350673042,1738054237769,-547.88,0.000194,2]
[350673043,1738054237779,-500.0,0.000194,2]
[350673044,1738054237789,-500.0,0.000194,2]
[350673045,1738054237798,-500.0,0.000194,2]
[350673046,1738054237807,-1587.49,0.000194,2]
[350673047,1738054237816,-500.0,0.000194,2]
[350673048,1738054237826,-500.0,0.000194,2]
[350673049,1738054237835,-500.0,0.000194,2]
[350673050,1738054237844,-500.0,0.000194,2]
[350673051,1738054237853,-1071.56,0.000194,2]
[350673052,1738054237862,-500.0,0.000194,2]
[350673053,1738054237872,-160.36383268,0.000194,2]
[350673054,1738054237881,-515.51,0.000194,2]
[350673055,1738054237890,-500.0,0.000194,2]
[350673056,1738054237899,-500.0,0.000194,2]
[350673057,1738054237908,-500.0,0.000194,2]
[350673058,1738054237917,-500.0,0.000194,2]
[350673059,1738054237926,-500.0,0.000194,2]
[350673060,1738054237935,-500.0,0.000194,2]
[350673061,1738054237943,-500.0,0.000194,2]
[350673062,1738054237953,-500.0,0.000194,2]
[350673063,1738054237962,-507.7555249,0.000194,2]
[350673064,1738054237971,-500.0,0.000194,2]
[350673065,1738054237981,-500.0,0.000194,2]
[350673066,1738054237990,-500.0,0.000194,2]
[350673067,1738054238000,-500.0,0.000194,2]
[350673068,1738054238009,-587.06992791,0.000194,2]
[350673069,1738054238019,-500.0,0.000194,2]
[350673070,1738054238027,-1366.34933034,0.000194,2]
[350673071,1738054238037,-500.0,0.000194,2]
[350673072,1738054238046,-500.0,0.000194,2]
[350673073,1738054238055,-500.0,0.000194,2]
[350673074,1738054238064,-500.0,0.000194,2]
[350673075,1738054238073,-582.06267179,0.000194,2]
[350673077,1738054238083,-500.0,0.000194,2]
[350673078,1738054238092,-500.0,0.000194,2]
[350673079,1738054238105,-500.0,0.000194,2]
[350673080,1738054238115,-500.0,0.000194,2]
[350673081,1738054238125,-500.0,0.000194,2]
[350673082,1738054238134,-1110.96,0.000194,2]
[350673083,1738054238143,-500.0,0.000194,2]
[350673084,1738054238154,-511.81946606,0.000194,2]
[350673085,1738054238168,-500.0,0.000194,2]
[350673086,1738054238177,-500.0,0.000194,2]
[350673087,1738054238186,-500.0,0.000194,2]
[350673088,1738054238196,-151.40402,0.000194,2]
[350673089,1738054238204,-23321.81011885,0.00019401,2]
[350673090,1738054238213,-309.1857289,0.00019403,2]
[350673091,1738054238223,-1366.34933027,0.00019456,2]
[350673092,1738054238232,-160.12407669,0.00019473,2]
[350673093,1738054238242,-152.26540854,0.00019479,4]
[350673094,1738054238251,-500.0,0.00019497,2]
[350673095,1738054238260,-500.0,0.00019497,2]
[350673096,1738054238270,-500.0,0.00019497,2]
[350673097,1738054238279,-500.0,0.00019497,2]
[350673098,1738054238288,-500.0,0.00019497,2]
[350673099,1738054238297,-500.0,0.00019497,2]
[350673100,1738054238307,-500.0,0.00019497,2]
[350673101,1738054238316,-500.0,0.00019497,2]
[350673102,1738054238325,-877.62,0.00019497,2]
[350673103,1738054238334,-411.94,0.00019497,2]
[350673104,1738054238343,-500.0,0.00019497,2]
[350673105,1738054238352,-510.98552496,0.00019497,2]
[350673106,1738054238361,-1357.02,0.00019498,2]
[350673107,1738054238371,-1793.34,0.00019498,2]
[350673108,1738054238381,-500.0,0.00019498,2]
[350673109,1738054238390,-510.67321001,0.00019498,2]
[350673110,1738054238399,-500.0,0.00019498,2]
[350673111,1738054238409,-500.0,0.00019498,2]
[350673112,1738054238418,-265.9802968,0.00019498,2]
[350673113,1738054238427,-922.7,0.00019498,2]
[350673114,1738054238436,-904.77,0.00019498,2]
[350673115,1738054238446,-500.0,0.00019498,2]
[350673116,1738054238455,-500.0,0.00019498,2]
[350673117,1738054238464,-898.92,0.00019498,2]
[350673118,1738054238473,-500.0,0.00019498,2]
[350673119,1738054238483,-500.0,0.00019498,2]
[350673120,1738054238492,-500.0,0.00019498,2]
[350673121,1738054238501,-500.0,0.00019498,2]
[350673122,1738054238510,-500.0,0.00019498,2]
[350673123,1738054238519,-500.0,0.00019498,2]
[350673124,1738054238529,-1221.94,0.00019498,2]
[350673125,1738054238538,-243.59793795,0.00019498,2]
[350673126,1738054238548,-500.0,0.00019498,2]
[350673127,1738054238558,-1116.88,0.00019498,2]
[350673128,1738054238567,-500.0,0.00019498,2]
[350673129,1738054238577,-1104.92,0.00019498,2]
[350673130,1738054238586,-1062.06,0.00019498,2]
[350673131,1738054238595,-258.44111925,0.00019498,2]
[350673132,1738054238605,-500.0,0.00019498,2]
[350673133,1738054238614,-500.0,0.00019498,2]
[350673134,1738054238623,-547.88,0.00019498,2]
[350673135,1738054238631,-500.0,0.00019498,2]
[350673136,1738054238640,-1720.55,0.00019498,2]
[350673137,1738054238649,-500.0,0.00019498,2]
[350673138,1738054238659,-500.0,0.00019498,2]
[350673139,1738054238668,-1587.49,0.00019498,2]
[350673140,1738054238677,-500.0,0.00019498,2]
[350673141,1738054238686,-500.0,0.00019498,2]
[350673142,1738054238696,-500.0,0.00019498,2]
[350673143,1738054238710,-500.0,0.00019498,2]
[350673144,1738054238719,-1071.56,0.00019498,2]
[350673146,1738054238729,-500.0,0.00019498,2]
[350673148,1738054238738,-508.66238998,0.00019498,2]
[350673150,1738054238748,-515.51,0.00019498,2]
[350673151,1738054238756,-500.0,0.00019498,2]
[350673152,1738054238765,-1064.51,0.00019498,2]
[350673153,1738054238775,-503.27782304,0.00019498,2]
[350673154,1738054238784,-500.0,0.00019498,2]
[350673155,1738054238794,-500.0,0.00019498,2]
[350673156,1738054238803,-500.0,0.00019498,2]
[350673157,1738054238812,-500.0,0.00019498,2]
[350673158,1738054238821,-500.0,0.00019498,2]
[350673159,1738054238830,-500.0,0.00019498,2]
[350673160,1738054238839,-500.0,0.00019498,2]
[350673161,1738054238848,-367.26754647,0.00019498,2]
[350673162,1738054239203,-132.73245353,0.00019498,2]
[350673163,1738054239212,-500.0,0.00019498,2]
[350673164,1738054239222,-500.0,0.00019498,2]
[350673165,1738054239231,-500.0,0.00019498,2]
[350673166,1738054239242,-500.0,0.00019498,2]
[350673167,1738054239251,-500.0,0.00019498,2]
[350673168,1738054239261,-500.0,0.00019498,2]
[350673169,1738054239270,-500.0,0.00019498,2]
[350673170,1738054239279,-500.0,0.00019498,2]
[350673171,1738054239288,-500.0,0.00019498,2]
[350673172,1738054239297,-500.0,0.00019498,2]
[350673173,1738054239306,-500.0,0.00019498,2]
[350673174,1738054239315,-500.0,0.00019498,2]
[350673175,1738054239325,-500.0,0.00019498,2]
[350673176,1738054239334,-500.0,0.00019498,2]
[350673177,1738054239343,-500.0,0.00019498,2]
[350673178,1738054239353,-500.0,0.00019498,2]
[350673179,1738054239363,-500.0,0.00019498,2]
[350673180,1738054239373,-500.0,0.00019498,2]
[350673181,1738054239382,-500.0,0.00019498,2]
[350673182,1738054239394,-481.20341737,0.00019498,2]
[350673183,1738054239403,-723.83,0.00019498,2]
[350673184,1738054239412,-723.83,0.00019498,2]
[350673185,1738054239422,-723.83,0.00019498,2]
[350673186,1738054239431,-500.0,0.00019498,2]
[350673187,1738054239441,-500.0,0.00019498,2]
[350673188,1738054239450,-500.0,0.00019498,2]
[350673189,1738054239460,-500.0,0.00019498,2]
[350673190,1738054239471,-500.0,0.00019498,2]
[350673191,1738054239480,-500.0,0.00019498,2]
[350673192,1738054239490,-500.0,0.00019498,2]
[350673193,1738054239499,-500.0,0.00019498,2]
[350673194,1738054239509,-516.93932202,0.00019498,2]
[350673195,1738054239518,-872.7,0.00019498,2]
[350673196,1738054239527,-872.7,0.00019498,2]
[350673197,1738054239536,-872.7,0.00019498,2]
[350673198,1738054239546,-500.0,0.00019498,2]
[350673199,1738054239555,-500.0,0.00019498,2]
[350673200,1738054239564,-212.28090136,0.00019498,2]
[350673201,1738054239573,-500.0,0.00019498,2]
[350673202,1738054239582,-500.0,0.00019498,2]
[350673203,1738054239592,-500.0,0.00019498,2]
[350673204,1738054239601,-500.0,0.00019498,2]
[350673205,1738054239610,-500.0,0.00019498,2]